[Event "Mistrovství Čech mládeže 2023 - HD12"]
[Site "Harrachov, Czech Republic"]
[Date "2023.10.25"]
[Round "6.10"]
[White "Kolář, Edvard"]
[Black "Ta, Xuan Nguyen"]
[Result "1-0"]
[TimeControl "90m + 30s"]
[WhiteElo "1473"]
[BlackElo "1252"]

1. e4 {[%clk 01:30:59]} c6 {[%clk 01:30:51]} {[%emt 00:00:10]} 2. d4 {[%clk
01:31:05]} {[%emt 00:00:23]} d5 {[%clk 01:31:10]} {[%emt 00:00:12]} 3. Nc3
{[%clk 01:29:37]} {[%emt 00:01:57]} e6 {[%clk 01:29:34]} {[%emt 00:02:07]} 4.
Be3 {[%clk 01:27:42]} {[%emt 00:02:24]} Ne7 {[%clk 01:20:33]} {[%emt 00:09:32]}
5. g3 {[%clk 01:25:25]} {[%emt 00:02:46]} dxe4 {[%clk 01:10:34]} {[%emt
00:10:30]} 6. Nxe4 {[%emt 00:01:06]} Qd5 {[%clk 01:10:18]} 7. Bg2 {[%clk
01:25:13]} {[%emt 00:00:52]} Qa5+ {[%clk 01:06:01]} {[%emt 00:04:47]} 8. c3
{[%clk 01:23:09]} {[%emt 00:02:34]} Nf5 {[%clk 01:04:31]} {[%emt 00:02:00]} 9.
Nh3 {[%clk 01:19:51]} {[%emt 00:03:47]} Be7 {[%clk 01:00:17]} {[%emt 00:04:43]}
10. O-O {[%clk 01:03:14]} {[%emt 00:17:08]} Nd7 {[%clk 00:53:14]} {[%emt
00:07:27]} 11. a3 {[%clk 00:48:29]} {[%emt 00:15:21]} h5 {[%clk 00:39:47]}
{[%emt 00:13:58]} 12. c4 {[%clk 00:46:37]} {[%emt 00:02:22]} Nf6 {[%clk
00:30:53]} {[%emt 00:09:24]} 13. Nxf6+ {[%clk 00:39:09]} {[%emt 00:07:57]} Bxf6
{[%clk 00:29:56]} {[%emt 00:01:28]} 14. Nf4 {[%clk 00:33:46]} {[%emt 00:05:52]}
h4 {[%clk 00:23:40]} {[%emt 00:06:47]} 15. g4 {[%clk 00:33:08]} {[%emt
00:01:07]} Ne7 {[%clk 00:19:38]} {[%emt 00:04:33]} 16. Ne2 {[%clk 00:31:17]}
{[%emt 00:02:15]} Bd7 {[%clk 00:15:49]} {[%emt 00:04:24]} 17. c5 {[%clk
00:30:36]} {[%emt 00:01:12]} Nd5 {[%clk 00:13:50]} {[%emt 00:02:29]} 18. Nf4
{[%clk 00:26:47]} {[%emt 00:04:14]} g5 {[%clk 00:08:35]} {[%emt 00:05:50]} 19.
Nxd5 {[%clk 00:24:54]} {[%emt 00:02:22]} cxd5 {[%clk 00:07:42]} {[%emt
00:01:24]} 20. h3 {[%clk 00:24:30]} {[%emt 00:00:52]} Qc7 {[%clk 00:06:42]}
{[%emt 00:01:31]} 21. Re1 {[%clk 00:24:13]} {[%emt 00:00:47]} Bc6 {[%clk
00:05:53]} {[%emt 00:01:19]} 22. Rb1 {[%clk 00:22:25]} {[%emt 00:02:17]} Qd7
{[%clk 00:05:29]} {[%emt 00:00:56]} 23. Qd2 {[%clk 00:22:13]} {[%emt 00:00:41]}
Rg8 {[%clk 00:05:40]} {[%emt 00:00:19]} 24. b4 {[%clk 00:20:59]} {[%emt
00:01:44]} a6 {[%clk 00:05:45]} {[%emt 00:00:25]} 25. Rb2 {[%clk 00:20:06]}
{[%emt 00:01:21]} Rc8 {[%clk 00:05:49]} {[%emt 00:00:28]} 26. Reb1 {[%clk
00:19:54]} {[%emt 00:00:41]} Bb5 {[%clk 00:06:01]} {[%emt 00:00:20]} 27. Qd1
{[%clk 00:19:17]} {[%emt 00:00:59]} Ba4 {[%clk 00:05:51]} {[%emt 00:00:49]} 28.
Qf3 {[%clk 00:18:23]} {[%emt 00:01:19]} Be7 {[%clk 00:04:41]} {[%emt 00:01:43]}
29. Bf1 {[%clk 00:17:20]} {[%emt 00:01:33]} f6 {[%clk 00:03:40]} {[%emt
00:01:31]} 30. b5 {[%clk 00:16:48]} {[%emt 00:01:03]} axb5 {[%clk 00:02:20]}
{[%emt 00:01:50]} 31. Bxb5 {[%clk 00:16:59]} {[%emt 00:00:19]} Bxb5 {[%clk
00:02:44]} {[%emt 00:00:06]} 32. Rxb5 {[%clk 00:17:10]} {[%emt 00:00:19]} Rc7
{[%clk 00:02:53]} {[%emt 00:00:21]} 33. Bd2 {[%clk 00:16:16]} {[%emt 00:01:23]}
Rc8 {[%clk 00:01:58]} {[%emt 00:01:27]} 34. Rxb7 {[%clk 00:16:38]} {[%emt
00:00:07]} Qa4 {[%clk 00:01:46]} {[%emt 00:00:39]} 35. Rxe7+ {[%clk 00:16:26]}
{[%emt 00:00:44]} Kxe7 {[%clk 00:02:04]} {[%emt 00:00:13]} 36. Rb7+ {[%clk
00:16:49]} {[%emt 00:00:06]} Ke8 {[%clk 00:02:04]} {[%emt 00:00:31]} 37. Qxf6
{[%clk 00:17:09]} {[%emt 00:00:10]} 1-0

[Event "Mistrovství Čech mládeže 2023 - HD12"]
[Site "Harrachov, Czech Republic"]
[Date "2023.10.25"]
[Round "6.11"]
[White "Zeman, Jonáš"]
[Black "Frantsev, Iegor"]
[Result "0-1"]
[TimeControl "90m + 30s"]
[WhiteElo "1216"]
[BlackElo "1397"]

1. e4 {[%clk 01:30:56]} {[%emt 00:00:03]} c6 {[%clk 01:30:56]} {[%emt
00:00:05]} 2. Nf3 {[%clk 01:31:16]} {[%emt 00:00:10]} d5 {[%clk 01:31:19]}
{[%emt 00:00:08]} 3. Nc3 {[%clk 01:31:37]} {[%emt 00:00:08]} Bg4 {[%clk
01:31:08]} {[%emt 00:00:39]} 4. h3 {[%clk 01:31:51]} {[%emt 00:00:17]} Bxf3
{[%clk 01:31:29]} {[%emt 00:00:09]} 5. Qxf3 {[%clk 01:32:13]} {[%emt 00:00:09]}
e6 {[%clk 01:31:58]} {[%emt 00:00:02]} 6. d3 {[%clk 01:32:14]} {[%emt
00:00:27]} Bd6 {[%clk 01:31:01]} {[%emt 00:01:27]} 7. Bd2 {[%clk 01:32:15]}
{[%emt 00:00:29]} Nd7 {[%clk 01:30:58]} {[%emt 00:00:33]} 8. g4 {[%clk
01:32:03]} {[%emt 00:00:42]} Ne5 {[%clk 01:19:09]} {[%emt 00:12:19]} 9. Qg2
{[%clk 01:31:08]} {[%emt 00:01:26]} h6 {[%clk 01:15:26]} {[%emt 00:04:13]} 10.
f4 {[%clk 01:28:23]} {[%emt 00:03:15]} Qh4+ {[%clk 01:14:13]} {[%emt 00:01:42]}
11. Ke2 {[%clk 01:27:28]} {[%emt 00:01:25]} Ng6 {[%clk 01:06:55]} {[%emt
00:07:49]} 12. e5 {[%clk 01:24:36]} {[%emt 00:03:22]} Bc7 {[%clk 01:01:45]}
{[%emt 00:05:39]} 13. Re1 {[%clk 01:22:00]} {[%emt 00:03:05]} O-O-O {[%clk
00:57:44]} {[%emt 00:04:32]} 14. Kd1 {[%clk 01:18:30]} {[%emt 00:04:00]} Re8
{[%clk 00:45:39]} {[%emt 00:12:31]} 15. Kc1 {[%clk 01:15:41]} {[%emt 00:03:24]}
f6 {[%clk 00:34:51]} {[%emt 00:11:16]} 16. d4 {[%clk 01:08:43]} {[%emt
00:07:29]} Nxf4 {[%clk 00:28:07]} {[%emt 00:07:15]} 17. Qf3 {[%clk 01:05:44]}
{[%emt 00:05:21]} fxe5 {[%clk 00:24:30]} {[%emt 00:03:15]} 18. dxe5 {[%clk
01:05:29]} {[%emt 00:00:44]} Rf8 {[%clk 00:22:04]} {[%emt 00:02:54]} 19. Bd3
{[%clk 00:55:09]} {[%emt 00:10:50]} Nxd3+ {[%clk 00:21:14]} {[%emt 00:01:22]}
20. Qxd3 {[%clk 00:48:58]} {[%emt 00:06:41]} Ne7 {[%clk 00:17:28]} {[%emt
00:04:14]} 21. Rhf1 {[%clk 00:44:55]} {[%emt 00:04:33]} Kb8 {[%clk 00:12:02]}
{[%emt 00:05:56]} 22. Rf3 {[%clk 00:42:47]} {[%emt 00:02:40]} Nc8 {[%clk
00:11:40]} {[%emt 00:00:49]} 23. Qe2 {[%clk 00:33:15]} {[%emt 00:10:04]} Qe7
{[%clk 00:11:09]} {[%emt 00:00:59]} 24. Ref1 {[%clk 00:30:09]} {[%emt
00:03:38]} Rxf3 {[%clk 00:10:56]} {[%emt 00:00:44]} 25. Rxf3 {[%clk 00:30:28]}
{[%emt 00:00:10]} Rf8 {[%clk 00:11:13]} {[%emt 00:00:14]} 26. Rxf8 {[%emt
00:01:37]} Qxf8 {[%clk 00:11:40]} 27. Qe3 {[%clk 00:24:07]} {[%emt 00:05:45]}
Qf1+ {[%clk 00:10:31]} {[%emt 00:01:39]} 28. Nd1 {[%clk 00:23:31]} {[%emt
00:01:07]} Bb6 {[%clk 00:09:43]} {[%emt 00:01:16]} 29. Qg3 {[%clk 00:23:13]}
{[%emt 00:00:49]} Bc7 {[%clk 00:07:17]} {[%emt 00:02:57]} 30. h4 {[%clk
00:21:52]} {[%emt 00:01:51]} Nb6 {[%clk 00:05:49]} {[%emt 00:01:57]} 31. g5
{[%clk 00:14:08]} {[%emt 00:08:15]} h5 {[%clk 00:05:21]} {[%emt 00:00:57]} 32.
Bf4 {[%clk 00:08:29]} {[%emt 00:06:09]} Nc4 {[%clk 00:05:17]} {[%emt 00:00:31]}
33. g6 {[%emt 00:00:24]} Nxb2 {[%clk 00:04:31]} {[%emt 00:01:15]} 34. Kxb2
{[%clk 00:08:58]} {[%emt 00:00:12]} Qxd1 {[%clk 00:04:37]} {[%emt 00:00:23]} 35.
Qg5 {[%clk 00:09:00]} {[%emt 00:00:27]} Qd4+ {[%clk 00:04:39]} {[%emt
00:00:29]} 36. Kc1 {[%clk 00:08:38]} {[%emt 00:00:52]} Qa1+ {[%clk 00:04:28]}
{[%emt 00:00:40]} 37. Kd2 {[%clk 00:08:54]} {[%emt 00:00:15]} Ba5+ {[%clk
00:04:48]} {[%emt 00:00:10]} 38. Ke2 {[%clk 00:09:08]} {[%emt 00:00:17]} Qe1+
{[%clk 00:04:55]} {[%emt 00:00:23]} 39. Kf3 {[%clk 00:09:25]} {[%emt 00:00:13]}
Qd1+ {[%clk 00:05:23]} {[%emt 00:00:02]} 40. Kg2 {[%clk 00:09:19]} {[%emt
00:00:35]} Qxc2+ {[%clk 00:05:35]} {[%emt 00:00:19]} 41. Kh1 {[%clk 00:08:41]}
{[%emt 00:01:06]} Qd1+ {[%clk 00:05:08]} {[%emt 00:00:57]} 42. Kh2 {[%clk
00:08:55]} {[%emt 00:00:16]} Qc2+ {[%clk 00:04:03]} {[%emt 00:01:35]} 43. Kh1
{[%clk 00:09:04]} {[%emt 00:00:21]} Qe4+ {[%clk 00:04:12]} {[%emt 00:00:21]} 44.
Kh2 {[%clk 00:09:11]} {[%emt 00:00:24]} d4 {[%clk 00:03:32]} {[%emt 00:01:07]}
45. Kh3 {[%clk 00:08:53]} {[%emt 00:00:50]} Qh1+ {[%clk 00:02:24]} {[%emt
00:01:38]} 46. Bh2 {[%clk 00:09:00]} {[%emt 00:00:23]} Qf3+ {[%clk 00:02:38]}
{[%emt 00:00:16]} 47. Bg3 {[%clk 00:08:25]} {[%emt 00:01:05]} Qh1+ {[%clk
00:01:36]} {[%emt 00:01:32]} 48. Bh2 {[%clk 00:08:44]} {[%emt 00:00:11]} Qf1+
{[%clk 00:02:01]} {[%emt 00:00:04]} 49. Kg3 {[%clk 00:09:02]} {[%emt 00:00:13]}
Be1# {[%clk 00:02:22]} {[%emt 00:00:09]} 0-1

[Event "Mistrovství Čech mládeže 2023 - HD12"]
[Site "Harrachov, Czech Republic"]
[Date "2023.10.25"]
[Round "6.12"]
[White "Ježek, Jiří"]
[Black "Školoud, Natanael"]
[Result "0-1"]
[TimeControl "90m + 30s"]
[WhiteElo "1392"]
[BlackElo "1193"]

1. d4 {[%clk 01:30:55]} {[%emt 00:00:04]} Nf6 {[%clk 01:30:51]} {[%emt
00:00:10]} 2. c4 {[%clk 01:31:08]} {[%emt 00:00:16]} e6 {[%clk 01:31:13]}
{[%emt 00:00:08]} 3. Nf3 {[%clk 01:30:40]} {[%emt 00:00:58]} d5 {[%clk
01:29:44]} {[%emt 00:01:59]} 4. Nc3 {[%clk 01:30:00]} {[%emt 00:01:11]} Bb4
{[%clk 01:29:49]} {[%emt 00:00:24]} 5. Bg5 {[%clk 01:28:33]} {[%emt 00:01:58]}
O-O {[%clk 01:28:19]} {[%emt 00:02:01]} 6. e3 {[%clk 01:25:58]} {[%emt
00:03:04]} Nbd7 {[%clk 01:20:13]} {[%emt 00:08:35]} 7. Qc2 {[%clk 01:24:00]}
{[%emt 00:02:28]} c5 {[%clk 01:17:32]} {[%emt 00:03:12]} 8. Rc1 {[%clk
01:21:02]} {[%emt 00:03:28]} b6 {[%clk 01:10:20]} {[%emt 00:07:42]} 9. cxd5
{[%clk 01:18:53]} {[%emt 00:02:39]} exd5 {[%clk 01:10:05]} {[%emt 00:00:45]} 10.
Be2 {[%clk 01:18:39]} {[%emt 00:00:44]} Qc7 {[%clk 01:05:56]} {[%emt 00:04:40]}
11. O-O {[%clk 01:15:54]} {[%emt 00:03:14]} Bxc3 {[%clk 01:05:57]} {[%emt
00:00:29]} 12. bxc3 {[%clk 01:07:13]} {[%emt 00:09:11]} Qc6 {[%clk 00:57:28]}
{[%emt 00:08:59]} 13. Rfd1 {[%clk 00:59:06]} {[%emt 00:08:37]} c4 {[%clk
00:56:30]} {[%emt 00:01:28]} 14. Bf4 {[%clk 00:53:28]} {[%emt 00:06:07]} Ne4
{[%clk 00:53:43]} {[%emt 00:03:17]} 15. Nd2 {[%clk 00:48:20]} {[%emt 00:05:38]}
Nxd2 {[%clk 00:53:49]} {[%emt 00:00:24]} 16. Rxd2 {[%clk 00:47:42]} {[%emt
00:01:09]} Nf6 {[%clk 00:54:08]} {[%emt 00:00:12]} 17. Bf3 {[%clk 00:46:36]}
{[%emt 00:01:37]} Re8 {[%clk 00:51:01]} {[%emt 00:03:37]} 18. Be5 {[%clk
00:42:39]} {[%emt 00:04:25]} Ng4 {[%clk 00:49:02]} {[%emt 00:02:29]} 19. Rcd1
{[%clk 00:35:38]} {[%emt 00:07:31]} Rd8 {[%clk 00:40:02]} {[%emt 00:09:30]} 20.
h3 {[%clk 00:31:43]} {[%emt 00:04:25]} Nf6 {[%clk 00:38:44]} {[%emt 00:01:49]}
21. Bxf6 {[%clk 00:30:15]} {[%emt 00:01:58]} Qxf6 {[%clk 00:38:55]} {[%emt
00:00:19]} 22. e4 {[%clk 00:23:54]} {[%emt 00:06:51]} Be6 {[%clk 00:35:31]}
{[%emt 00:03:53]} 23. exd5 {[%clk 00:20:54]} {[%emt 00:03:30]} Bxd5 {[%clk
00:35:10]} {[%emt 00:00:52]} 24. Bxd5 {[%clk 00:21:18]} {[%emt 00:00:05]} Rxd5
{[%clk 00:35:36]} {[%emt 00:00:05]} 25. Re2 {[%clk 00:19:06]} {[%emt 00:02:42]}
Qf5 {[%clk 00:32:40]} {[%emt 00:03:25]} 26. Qxf5 {[%clk 00:17:11]} {[%emt
00:02:25]} Rxf5 {[%clk 00:32:57]} {[%emt 00:00:13]} 27. Rde1 {[%clk 00:17:34]}
{[%emt 00:00:08]} f6 {[%clk 00:32:52]} {[%emt 00:00:35]} 28. Rd1 {[%clk
00:15:36]} {[%emt 00:02:27]} Rd5 {[%clk 00:32:14]} {[%emt 00:01:08]} 29. Rb2
{[%clk 00:14:26]} {[%emt 00:01:40]} Rb8 {[%clk 00:31:21]} {[%emt 00:01:23]} 30.
f3 {[%clk 00:11:47]} {[%emt 00:03:10]} Kf7 {[%clk 00:31:18]} {[%emt 00:00:33]}
31. Re2 {[%clk 00:11:15]} {[%emt 00:01:02]} a5 {[%clk 00:31:25]} {[%emt
00:00:22]} 32. Rb1 {[%clk 00:09:56]} {[%emt 00:01:49]} b5 {[%clk 00:31:09]}
{[%emt 00:00:46]} 33. a3 {[%clk 00:08:58]} {[%emt 00:01:29]} b4 {[%clk
00:29:31]} {[%emt 00:02:08]} 34. Reb2 {[%clk 00:05:43]} {[%emt 00:03:45]} b3
{[%clk 00:29:43]} {[%emt 00:00:18]} 35. Re1 {[%clk 00:03:50]} {[%emt 00:02:22]}
Rd6 {[%clk 00:29:27]} {[%emt 00:00:46]} 36. Kf2 {[%clk 00:03:32]} {[%emt
00:00:47]} Re6 {[%clk 00:29:32]} {[%emt 00:00:25]} 37. Re3 {[%clk 00:02:08]}
{[%emt 00:01:54]} Rxe3 {[%clk 00:29:32]} {[%emt 00:00:31]} 38. Kxe3 {[%clk
00:02:32]} {[%emt 00:00:06]} Ke6 {[%clk 00:29:44]} {[%emt 00:00:17]} 39. Kf2
{[%clk 00:01:21]} {[%emt 00:01:42]} Kd5 {[%clk 00:29:57]} {[%emt 00:00:17]} 40.
a4 {[%clk 00:00:57]} {[%emt 00:00:55]} f5 {[%clk 00:30:03]} {[%emt 00:00:24]}
41. Kg3 {[%clk 00:00:47]} {[%emt 00:00:40]} Re8 {[%clk 00:29:16]} {[%emt
00:01:16]} 42. Kf2 {[%emt 00:00:20]} f4 {[%clk 00:29:37]} {[%emt 00:00:07]} 43.
Rb1 {[%clk 00:00:39]} {[%emt 00:00:50]} Re3 {[%clk 00:29:44]} {[%emt 00:00:23]}
44. Rc1 {[%clk 00:00:41]} {[%emt 00:00:28]} Rd3 {[%clk 00:29:17]} {[%emt
00:00:57]} 45. Ke2 {[%clk 00:00:54]} {[%emt 00:00:17]} g5 {[%clk 00:28:21]}
{[%emt 00:01:26]} 46. Kf2 {[%clk 00:00:46]} {[%emt 00:00:38]} Rd2+ {[%clk
00:28:26]} {[%emt 00:00:25]} 47. Kf1 {[%clk 00:00:53]} {[%emt 00:00:24]} Rc2
{[%clk 00:27:42]} {[%emt 00:01:13]} 48. Rb1 {[%clk 00:00:37]} {[%emt 00:00:46]}
b2 {[%clk 00:27:52]} 0-1

[Event "Mistrovství Čech mládeže 2023 - HD12"]
[Site "Harrachov, Czech Republic"]
[Date "2023.10.25"]
[Round "6.13"]
[White "Kreuzman, Daniel"]
[Black "Bukovskij, Dmitri"]
[Result "1/2-1/2"]
[TimeControl "90m + 30s"]
[WhiteElo "1169"]
[BlackElo "1391"]

1. e4 {[%clk 01:30:55]} {[%emt 00:00:04]} c5 {[%clk 01:30:46]} {[%emt
00:00:15]} 2. Nf3 {[%clk 01:31:19]} {[%emt 00:00:06]} e6 {[%emt 00:00:13]} 3.
Nc3 {[%clk 01:31:40]} {[%emt 00:00:07]} Nc6 {[%clk 01:31:14]} {[%emt 00:00:21]}
4. d4 {[%clk 01:31:58]} {[%emt 00:00:12]} cxd4 {[%clk 01:31:34]} {[%emt
00:00:09]} 5. Nxd4 {[%clk 01:32:25]} {[%emt 00:00:04]} Nge7 {[%clk 01:31:13]}
{[%emt 00:00:51]} 6. Ndb5 {[%clk 01:28:50]} {[%emt 00:04:04]} Ng6 {[%clk
01:30:29]} {[%emt 00:01:14]} 7. Nd6+ {[%clk 01:28:19]} {[%emt 00:01:01]} Bxd6
{[%clk 01:30:51]} {[%emt 00:00:07]} 8. Qxd6 {[%clk 01:28:45]} {[%emt 00:00:05]}
Qe7 {[%clk 01:30:31]} {[%emt 00:00:49]} 9. Qxe7+ {[%clk 01:26:56]} {[%emt
00:02:20]} Ncxe7 {[%clk 01:30:44]} {[%emt 00:00:17]} 10. Bc4 {[%clk 01:26:50]}
{[%emt 00:00:35]} O-O {[%clk 01:29:56]} {[%emt 00:01:18]} 11. O-O {[%clk
01:24:38]} {[%emt 00:02:41]} b6 {[%clk 01:29:27]} {[%emt 00:01:00]} 12. Nb5
{[%clk 01:22:56]} {[%emt 00:02:12]} Ba6 {[%clk 01:28:15]} {[%emt 00:01:41]} 13.
Bd3 {[%clk 01:22:16]} {[%emt 00:01:10]} Bxb5 {[%clk 01:28:22]} {[%emt
00:00:24]} 14. Bxb5 {[%clk 01:22:38]} {[%emt 00:00:08]} d5 {[%clk 01:28:01]}
{[%emt 00:00:51]} 15. f3 {[%clk 01:20:07]} {[%emt 00:03:01]} Rac8 {[%clk
01:27:34]} {[%emt 00:00:57]} 16. Ba4 {[%clk 01:19:12]} {[%emt 00:01:25]} d4
{[%clk 01:26:50]} {[%emt 00:01:14]} 17. Rd1 {[%clk 01:15:37]} {[%emt 00:04:05]}
e5 {[%clk 01:27:06]} {[%emt 00:00:14]} 18. Bd2 {[%clk 01:11:50]} {[%emt
00:04:17]} Rfd8 {[%clk 01:23:44]} {[%emt 00:03:51]} 19. c3 {[%clk 01:10:20]}
{[%emt 00:02:01]} a6 {[%clk 01:22:31]} {[%emt 00:01:42]} 20. Bb3 {[%clk
01:10:09]} {[%emt 00:00:42]} Nc6 {[%clk 01:22:18]} {[%emt 00:00:43]} 21. Bd5
{[%clk 01:09:19]} {[%emt 00:01:19]} Nge7 {[%clk 01:22:19]} {[%emt 00:00:30]} 22.
Bb3 {[%clk 01:09:00]} {[%emt 00:00:49]} Na5 {[%clk 01:22:10]} {[%emt 00:00:39]}
23. Kf2 {[%clk 01:06:11]} {[%emt 00:03:19]} Nc4 {[%clk 01:22:15]} {[%emt
00:00:25]} 24. Bxc4 {[%clk 01:06:12]} {[%emt 00:00:29]} 1/2-1/2

[Event "Mistrovství Čech mládeže 2023 - HD12"]
[Site "Harrachov, Czech Republic"]
[Date "2023.10.25"]
[Round "6.14"]
[White "Vo, Daniel"]
[Black "Remizov, Artem"]
[Result "1-0"]
[TimeControl "90m + 30s"]
[WhiteElo "1341"]
[BlackElo "1259"]

1. e4 {[%clk 01:30:59]} e5 {[%clk 01:30:55]} {[%emt 00:00:06]} 2. Nf3 {[%clk
01:31:17]} {[%emt 00:00:10]} Nc6 {[%clk 01:31:06]} {[%emt 00:00:21]} 3. Bc4
{[%clk 01:31:33]} {[%emt 00:00:14]} Nf6 {[%clk 01:31:23]} {[%emt 00:00:12]} 4.
d3 {[%clk 01:31:47]} {[%emt 00:00:16]} Bc5 {[%clk 01:31:20]} {[%emt 00:00:34]}
5. Nc3 {[%clk 01:31:49]} {[%emt 00:00:28]} d6 {[%clk 01:31:39]} {[%emt
00:00:10]} 6. Bg5 {[%clk 01:31:59]} {[%emt 00:00:20]} h6 {[%clk 01:31:30]}
{[%emt 00:00:39]} 7. Bxf6 {[%clk 01:32:12]} {[%emt 00:00:18]} Qxf6 {[%clk
01:31:39]} {[%emt 00:00:20]} 8. Nd5 {[%clk 01:27:25]} {[%emt 00:05:18]} Qd8
{[%clk 01:30:43]} {[%emt 00:01:26]} 9. O-O {[%clk 01:27:20]} {[%emt 00:00:34]}
Bg4 {[%clk 01:30:52]} {[%emt 00:00:21]} 10. h3 {[%clk 01:27:11]} {[%emt
00:00:39]} Bh5 {[%clk 01:30:37]} {[%emt 00:00:45]} 11. c3 {[%clk 01:26:54]}
{[%emt 00:00:47]} Ne7 {[%clk 01:28:29]} {[%emt 00:02:39]} 12. b4 {[%clk
01:26:44]} {[%emt 00:00:39]} Bb6 {[%clk 01:27:37]} {[%emt 00:01:23]} 13. Nxb6
{[%clk 01:24:02]} {[%emt 00:03:11]} axb6 {[%clk 01:27:45]} {[%emt 00:00:22]} 14.
d4 {[%clk 01:22:39]} {[%emt 00:01:54]} f6 {[%clk 01:25:10]} {[%emt 00:03:05]}
15. Be2 {[%clk 01:20:39]} {[%emt 00:02:30]} Bg6 {[%clk 01:24:00]} {[%emt
00:01:39]} 16. Bd3 {[%clk 01:20:24]} {[%emt 00:00:44]} d5 {[%clk 01:22:25]}
{[%emt 00:02:07]} 17. exd5 {[%clk 01:20:18]} {[%emt 00:00:34]} e4 {[%clk
01:21:38]} {[%emt 00:01:18]} 18. Re1 {[%clk 01:18:40]} {[%emt 00:02:05]} exd3
{[%clk 01:21:07]} {[%emt 00:01:05]} 19. Nh4 {[%clk 01:18:45]} {[%emt 00:00:21]}
Bh7 {[%clk 01:21:04]} {[%emt 00:00:36]} 20. Qh5+ {[%clk 01:17:40]} {[%emt
00:01:35]} Kf8 {[%clk 01:19:10]} {[%emt 00:02:25]} 21. c4 {[%clk 01:16:48]}
{[%emt 00:01:20]} b5 {[%clk 01:15:55]} {[%emt 00:03:47]} 22. Re6 {[%clk
01:07:51]} {[%emt 00:09:17]} bxc4 {[%clk 01:04:03]} {[%emt 00:12:32]} 23. d6
{[%clk 01:07:10]} {[%emt 00:01:10]} cxd6 {[%clk 01:01:59]} {[%emt 00:02:35]} 24.
Rae1 {[%clk 01:06:42]} {[%emt 00:00:57]} Rxa2 {[%clk 00:57:28]} {[%emt
00:05:01]} 25. Rxe7 {[%clk 01:04:44]} {[%emt 00:02:28]} Qxe7 {[%clk 00:57:38]}
{[%emt 00:00:20]} 26. Rxe7 {[%clk 01:05:01]} {[%emt 00:00:13]} Kxe7 {[%clk
00:58:07]} {[%emt 00:00:02]} 27. d5 {[%emt 00:01:54]} c3 {[%clk 00:51:27]}
{[%emt 00:07:08]} 28. Qg4 {[%emt 00:01:08]} Re2 {[%clk 00:49:59]} {[%emt
00:01:50]} 29. Qxg7+ {[%clk 01:02:20]} {[%emt 00:01:18]} Kd8 {[%clk 00:47:47]}
{[%emt 00:02:42]} 30. Qxh8+ {[%clk 01:02:07]} {[%emt 00:00:43]} Re8 {[%clk
00:47:55]} {[%emt 00:00:23]} 31. Qxf6+ {[%clk 01:01:58]} {[%emt 00:00:37]} Kd7
{[%clk 00:46:40]} {[%emt 00:01:46]} 32. Qxc3 {[%clk 01:00:26]} {[%emt
00:02:02]} Re4 {[%clk 00:43:29]} {[%emt 00:03:42]} 33. Nf3 {[%clk 00:59:49]}
{[%emt 00:01:05]} Re7 {[%clk 00:42:13]} {[%emt 00:01:47]} 34. b5 {[%clk
00:58:02]} {[%emt 00:02:17]} b6 {[%clk 00:41:55]} {[%emt 00:00:49]} 35. Qc6+
{[%clk 00:58:16]} {[%emt 00:00:14]} Kd8 {[%clk 00:41:12]} {[%emt 00:01:15]} 36.
Qxd6+ {[%clk 00:58:03]} {[%emt 00:00:43]} Rd7 {[%clk 00:41:31]} {[%emt
00:00:11]} 37. Qxb6+ {[%clk 00:58:13]} {[%emt 00:00:20]} Rc7 {[%clk 00:41:42]}
{[%emt 00:00:19]} 38. d6 {[%clk 00:58:15]} {[%emt 00:00:27]} 1-0